[Event "46th GRE-chT Premier 2018"]
[Site "Rio Achaia"]
[Date "2018.07.11"]
[Round "3"]
[White "Lagogianni, Niki Vasiliki"]
[Black "Bellou, Nazareta"]
[Result "1-0"]
[ECO "B44"]
[WhiteElo "1123"]
[BlackElo "1211"]
[Annotator "NA"]
[PlyCount "121"]
[EventDate "2018.07.10"]
[EventType "team-tourn"]
[EventCountry "GRE"]
[SourceTitle "playchess.com"]
[Source "ChessBase"]
[SourceQuality "1"]
[TimeControl "40/5400+30:1800+30"]

1. e4 {[%emt 0:02:10]} c5 {[%emt 0:00:00]} 2. Nf3 {[%emt 0:00:34]} e6 {[%emt 0:00:00]} 3. d4 {[%emt 0:06:24]} cxd4 {[%emt 0:00:10]} 4. Nxd4 {[%emt 0:00:11]} Nc6 {[%emt 0:00:07]} 5. Be3 {[%emt 0:02:19]} Qc7 {[%emt 0:00:32]} 6. Nxc6 {[%emt 0:01:46]} Qxc6 {[%emt 0:01:11]} 7. Bd3 {[%emt 0:00:17]} Nf6 {[%emt 0:02:03]} 8. Nc3 {[%emt 0:00:21]} Bb4 {[%emt 0:01:48]} 9. Qd2 {[%emt 0:02:19]} O-O {[%emt 0:05:22]} 10. a3 {[%emt 0:00:38]} Nxe4 {[%emt 0:07:02]} 11. Bxe4 {[%emt 0:00:18]} Bxc3 {[%emt 0:00:13]} 12. Bxc6 {[%emt 0:00:27]} Bxd2+ {[%emt 0:00:10]} 13. Bxd2 {[%emt 0:00:13]} bxc6 {[%emt 0:00:10]} 14. O-O {[%emt 0:00:21]} Ba6 {[%emt 0:02:39]} 15. Rfe1 {[%emt 0:00:15]} Rab8 {[%emt 0:00:41]} 16. Bb4 {[%emt 0:02:22]} Rfc8 {[%emt 0:02:25]} 17. Bc3 {[%emt 0:01:26]} d5 {[%emt 0:08:48]} 18. Be5 {[%emt 0:03:55]} Rb7 {[%emt 0:01:08]} 19. Rad1 {[%emt 0:13:51]} c5 {[%emt 0:08:30]} 20. b3 {[%emt 0:01:12]} c4 {[%emt 0:16:48]} 21. Re3 {[%emt 0:03:29]} cxb3 {[%emt 0:02:41]} 22. cxb3 {[%emt 0:00:10]} f6 {[%emt 0:08:55]} 23. Bb2 {[%emt 0:00:52]} Kf7 {[%emt 0:01:28]} 24. f4 {[%emt 0:01:15]} Rc2 {[%emt 0:02:27]} 25. Bd4 {[%emt 0:01:24]} Rbc7 {[%emt 0:03:50]} 26. g3 {[%emt 0:03:57]} Be2 {[%emt 0:04:17]} 27. Re1 {[%emt 0:03:16]} Bg4 {[%emt 0:00:20]} 28. b4 {[%emt 0:01:28]} a6 {[%emt 0:00:46]} 29. Bc5 {[%emt 0:00:15]} Rd2 {[%emt 0:04:47]} 30. Rc3 {[%emt 0:02:25]} Rd7 {[%emt 0:01:47]} 31. Be3 {[%emt 0:01:12]} Ra2 {[%emt 0:01:38]} 32. Bd4 {[%emt 0:02:43]} Bf5 {[%emt 0:02:11]} 33. Rd1 {[%emt 0:01:32]} Be4 {[%emt 0:00:46]} 34. h4 {[%emt 0:01:41]} Rg2+ {[%emt 0:01:07]} 35. Kf1 {[%emt 0:00:15]} h6 {[%emt 0:00:52]} 36. Re3 {[%emt 0:00:16]} Rc2 {[%emt 0:00:51]} 37. Bxf6 {[%emt 0:01:51]} gxf6 {[%emt 0:00:47]} 38. Rxe4 {[%emt 0:00:22]} Rdc7 {[%emt 0:01:13]} 39. Red4 {[%emt 0:01:45]} R7c3 {[%emt 0:00:58]} 40. R4d3 {[%emt 0:00:00]} Rc4 {[%emt 0:00:00]} 41. Re1 {[%emt 0:01:22]} f5 {[%emt 0:02:57]} 42. Re2 {[%emt 0:00:54]} R2c3 {[%emt 0:02:16]} 43. Red2 {[%emt 0:01:59]} Rc1+ {[%emt 0:01:55]} 44. Kf2 {[%emt 0:01:21]} Kf6 {[%emt 0:01:45]} 45. Re2 {[%emt 0:03:30]} R1c3 {[%emt 0:09:17]} 46. Red2 {[%emt 0:02:05]} Rc1 {[%emt 0:04:31]} 47. Re2 {[%emt 0:00:30]} d4 {[%emt 0:04:32]} 48. Red2 {[%emt 0:03:37]} e5 {[%emt 0:00:22]} 49. fxe5+ {[%emt 0:00:10]} Kxe5 {[%emt 0:00:05]} 50. Re2+ {[%emt 0:00:08]} Kd5 {[%emt 0:00:25]} 51. Red2 {[%emt 0:00:24]} R1c2 {[%emt 0:00:52]} 52. Rxd4+ {[%emt 0:01:00]} Rxd4 {[%emt 0:00:14]} 53. Rxc2 {[%emt 0:00:21]} Rc4 {[%emt 0:02:30]} 54. Re2 {[%emt 0:01:36]} Rc3 {[%emt 0:00:31]} 55. Re3 {[%emt 0:00:14]} Rxe3 {[%emt 0:02:09]} 56. Kxe3 {[%emt 0:00:06]} Kc4 {[%emt 0:00:04]} 57. Kf4 {[%emt 0:00:06]} Kb3 58. Kxf5 {[%emt 0:00:10]} Kxa3 {[%emt 0:00:13]} 59. g4 {[%emt 0:00:24]} Kxb4 {[%emt 0:00:14]} 60. g5 {[%emt 0:00:13]} a5 {[%emt 0:00:45]} 61. gxh6 {[%emt 0:00:10]} 1-0

[Event "46th GRE-chT Premier 2018"]
[Site "Rio Achaia"]
[Date "2018.07.11"]
[Round "3"]
[White "Tomara, Ioanna"]
[Black "Havanecz, Bianka"]
[Result "0-1"]
[ECO "C48"]
[WhiteElo "1007"]
[BlackElo "2193"]
[Annotator "NA"]
[PlyCount "56"]
[EventDate "2018.07.10"]
[EventType "team-tourn"]
[EventCountry "GRE"]
[SourceTitle "playchess.com"]
[Source "ChessBase"]
[SourceQuality "1"]
[TimeControl "40/5400+30:1800+30"]

1. e4 {[%emt 0:00:00]} e5 {[%emt 0:00:00]} 2. Nf3 {[%emt 0:00:00]} Nc6 {[%emt 0:00:00]} 3. Nc3 {[%emt 0:00:00]} Nf6 {[%emt 0:00:00]} 4. Bb5 {[%emt 0:00:00]} Bd6 {[%emt 0:00:00]} 5. O-O {[%emt 0:00:03]} O-O {[%emt 0:00:02]} 6. d3 {[%emt 0:00:29]} h6 {[%emt 0:00:06]} 7. Re1 {[%emt 0:01:20]} Re8 {[%emt 0:02:06]} 8. d4 {[%emt 0:06:57]} Nxd4 {[%emt 0:01:37]} 9. Nxd4 {[%emt 0:00:12]} exd4 {[%emt 0:00:07]} 10. Qxd4 {[%emt 0:00:34]} Be5 {[%emt 0:00:54]} 11. Qd3 {[%emt 0:01:04]} c6 {[%emt 0:00:43]} 12. Bc4 {[%emt 0:00:50]} d5 {[%emt 0:00:17]} 13. exd5 {[%emt 0:06:07]} Bxh2+ {[%emt 0:00:28]} 14. Kf1 {[%emt 0:00:06]} Rxe1+ {[%emt 0:03:36]} 15. Kxe1 {[%emt 0:00:08]} b5 {[%emt 0:00:09]} 16. Bb3 {[%emt 0:00:27]} b4 {[%emt 0:00:50]} 17. Ne4 {[%emt 0:01:51]} Qe8 {[%emt 0:03:48]} 18. f3 {[%emt 0:01:43]} cxd5 {[%emt 0:00:25]} 19. Bxd5 {[%emt 0:05:54]} Nxd5 {[%emt 0:00:26]} 20. Qxd5 {[%emt 0:00:42]} Bg3+ {[%emt 0:05:27]} 21. Kd1 {[%emt 0:02:55]} Be6 {[%emt 0:00:42]} 22. Qh5 {[%emt 0:09:15]} Rd8+ {[%emt 0:00:10]} 23. Bd2 {[%emt 0:08:16]} Bf4 {[%emt 0:00:08]} 24. Kc1 {[%emt 0:01:12]} Bxd2+ {[%emt 0:00:24]} 25. Nxd2 {[%emt 0:00:09]} Qd7 {[%emt 0:00:06]} 26. b3 {[%emt 0:02:15]} Qxd2+ {[%emt 0:00:09]} 27. Kb2 {[%emt 0:01:14]} Qc3+ {[%emt 0:00:06]} 28. Kb1 {[%emt 0:00:31]} Rd1# {[%emt 0:00:06]} 0-1